[Event "29th CRO-chT Junior 2020"]
[Site "Cakovec"]
[Date "2020.07.17"]
[Round "7.17"]
[White "Karlovcec, David"]
[Black "Haidinger, Erik"]
[Result "1/2-1/2"]
[ECO "D00"]
[WhiteElo "1655"]
[BlackElo "1767"]
[Annotator "NA RC"]
[PlyCount "50"]
[EventDate "2020.07.14"]
[EventType "team-tourn"]
[EventCountry "CRO"]
[SourceTitle "playchess.com"]
[Source "ChessBase"]
[SourceQuality "1"]
[TimeControl "5400+30"]

1. d4 {[%emt 0:00:30]} d5 {[%emt 0:00:30]} 2. Bf4 {[%emt 0:00:00]} c5 {[%emt 0:00:00]} 3. e3 {[%emt 0:00:00]} Nc6 {[%emt 0:00:00]} 4. c3 {[%emt 0:00:30]} Nf6 {[%emt 0:00:30]} 5. Nd2 {[%emt 0:00:30]} cxd4 {[%emt 0:00:30]} 6. exd4 {[%emt 0:00:30]} Bf5 {[%emt 0:00:30]} 7. Ngf3 {[%emt 0:00:30]} e6 {[%emt 0:01:30]} 8. Ne5 {[%emt 0:02:30]} Rc8 {[%emt 0:04:30]} 9. Ndf3 {[%emt 0:03:30]} Bd6 {[%emt 0:05:30]} 10. Bd3 {[%emt 0:02:30]} Bxd3 {[%emt 0:03:30]} 11. Qxd3 {[%emt 0:00:30]} O-O {[%emt 0:02:30]} 12. Bg5 {[%emt 0:09:30]} Be7 {[%emt 0:05:30]} 13. O-O {[%emt 0:04:30]} h6 {[%emt 0:02:30]} 14. Bh4 {[%emt 0:03:30]} Ne4 {[%emt 0:03:30]} 15. Bxe7 {[%emt 0:04:30]} Qxe7 {[%emt 0:03:30]} 16. Nxc6 {[%emt 0:03:30]} bxc6 {[%emt 0:02:30]} 17. Ne5 {[%emt 0:11:30]} c5 {[%emt 0:07:30]} 18. f3 {[%emt 0:15:30]} Nd6 {[%emt 0:02:30]} 19. a3 {[%emt 0:05:30]} c4 {[%emt 0:09:30]} 20. Qe2 {[%emt 0:02:30]} Rc7 {[%emt 0:02:30]} 21. f4 {[%emt 0:07:30]} Rb8 {[%emt 0:01:30]} 22. Rae1 {[%emt 0:03:09]} Rb6 {[%emt 0:01:30]} 23. Ng4 {[%emt 0:04:18]} Nf5 {[%emt 0:21:34]} 24. Ne3 {[%emt 0:04:30]} Nxe3 {[%emt 0:01:27]} 25. Qxe3 {[%emt 0:00:05]} f5 {[%emt 0:06:22]} 1/2-1/2

[Event "29th CRO-chT Junior 2020"]
[Site "Cakovec"]
[Date "2020.07.17"]
[Round "7.18"]
[White "Sundac, Ivano"]
[Black "Stampar, Jakov"]
[Result "1-0"]
[ECO "A47"]
[WhiteElo "1408"]
[BlackElo "1465"]
[Annotator "NA RC"]
[PlyCount "81"]
[EventDate "2020.07.14"]
[EventType "team-tourn"]
[EventCountry "CRO"]
[SourceTitle "playchess.com"]
[Source "ChessBase"]
[SourceQuality "1"]
[TimeControl "5400+30"]

1. d4 {[%emt 0:00:30]} Nf6 {[%emt 0:00:30]} 2. Nf3 {[%emt 0:00:00]} e6 {[%emt 0:02:30]} 3. Bf4 {[%emt 0:00:00]} b6 {[%emt 0:02:30]} 4. e3 {[%emt 0:00:00]} Bb7 {[%emt 0:04:30]} 5. Bd3 {[%emt 0:00:00]} Be7 {[%emt 0:03:30]} 6. c3 {[%emt 0:01:30]} d5 {[%emt 0:01:30]} 7. Qc2 {[%emt 0:00:30]} Nbd7 {[%emt 0:01:30]} 8. Nbd2 {[%emt 0:00:30]} Rc8 {[%emt 0:05:30]} 9. Ne5 {[%emt 0:01:30]} Nxe5 {[%emt 0:08:30]} 10. Bxe5 {[%emt 0:00:00]} a6 {[%emt 0:02:30]} 11. h4 {[%emt 0:01:00]} c5 {[%emt 0:01:30]} 12. Qd1 {[%emt 0:00:30]} c4 {[%emt 0:03:30]} 13. Bb1 {[%emt 0:01:30]} b5 {[%emt 0:00:30]} 14. a3 {[%emt 0:00:00]} Bd6 {[%emt 0:04:30]} 15. f4 {[%emt 0:01:00]} a5 {[%emt 0:02:30]} 16. g4 {[%emt 0:00:30]} Bxe5 {[%emt 0:05:30]} 17. fxe5 {[%emt 0:00:00]} Nd7 {[%emt 0:06:30]} 18. g5 {[%emt 0:00:00]} g6 {[%emt 0:04:30]} 19. Qg4 {[%emt 0:00:30]} b4 {[%emt 0:06:30]} 20. h5 {[%emt 0:00:30]} bxc3 {[%emt 0:08:30]} 21. bxc3 {[%emt 0:00:30]} Nf8 {[%emt 0:01:30]} 22. hxg6 {[%emt 0:01:30]} fxg6 {[%emt 0:01:30]} 23. Nf3 {[%emt 0:00:30]} Qb6 {[%emt 0:01:30]} 24. Bc2 {[%emt 0:01:30]} Qb2 {[%emt 0:01:24]} 25. Kd2 {[%emt 0:00:30]} Qb5 {[%emt 0:06:17]} 26. Nh4 {[%emt 0:00:30]} Rg8 {[%emt 0:00:49]} 27. Ng2 {[%emt 0:00:00]} Qd7 {[%emt 0:02:33]} 28. Rab1 {[%emt 0:00:00]} Bc6 {[%emt 0:00:46]} 29. Nf4 {[%emt 0:00:30]} Rg7 {[%emt 0:02:26]} 30. Rb2 {[%emt 0:00:30]} Rc7 {[%emt 0:00:46]} 31. Rb8+ {[%emt 0:00:30]} Rc8 {[%emt 0:01:34]} 32. Rhb1 {[%emt 0:00:30]} Ke7 {[%emt 0:00:45]} 33. Rxc8 {[%emt 0:01:30]} Qxc8 {[%emt 0:00:16]} 34. Qf3 {[%emt 0:00:30]} Nd7 {[%emt 0:00:46]} 35. Qh3 {[%emt 0:00:30]} Qg8 {[%emt 0:02:52]} 36. Rf1 {[%emt 0:00:30]} Nb6 {[%emt 0:01:45]} 37. Rb1 {[%emt 0:01:30]} Nd7 {[%emt 0:01:05]} 38. Bd1 {[%emt 0:00:30]} Nf8 {[%emt 0:02:19]} 39. Bg4 {[%emt 0:00:30]} Kd7 {[%emt 0:00:57]} 40. Rb8 {[%emt 0:00:00]} Re7 {[%emt 0:00:35]} 41. Qh6 {[%emt 0:01:00]} 1-0

[Event "29th CRO-chT Junior 2020"]
[Site "Cakovec"]
[Date "2020.07.17"]
[Round "7.19"]
[White "Vuk, Sebastijan"]
[Black "Tomljanovic, Ivano"]
[Result "1-0"]
[ECO "C55"]
[WhiteElo "1382"]
[BlackElo "1393"]
[Annotator "NA RC"]
[PlyCount "51"]
[EventDate "2020.07.14"]
[EventType "team-tourn"]
[EventCountry "CRO"]
[SourceTitle "playchess.com"]
[Source "ChessBase"]
[SourceQuality "1"]
[TimeControl "5400+30"]

1. e4 {[%emt 0:00:30]} e5 {[%emt 0:00:30]} 2. Nf3 {[%emt 0:00:00]} Nc6 {[%emt 0:00:00]} 3. Bb5 {[%emt 0:00:00]} d6 {[%emt 0:00:00]} 4. Bxc6+ {[%emt 0:00:00]} bxc6 {[%emt 0:00:30]} 5. Nc3 {[%emt 0:00:00]} Nf6 {[%emt 0:00:30]} 6. d3 {[%emt 0:00:30]} Be7 {[%emt 0:00:30]} 7. h3 {[%emt 0:01:30]} O-O {[%emt 0:00:30]} 8. O-O {[%emt 0:00:00]} Be6 {[%emt 0:01:30]} 9. Bg5 {[%emt 0:02:00]} h6 {[%emt 0:00:30]} 10. Bh4 {[%emt 0:00:30]} Qd7 {[%emt 0:00:30]} 11. Nd2 {[%emt 0:04:30]} Bxh3 {[%emt 0:05:30]} 12. gxh3 {[%emt 0:08:30]} Qxh3 {[%emt 0:00:30]} 13. Bxf6 {[%emt 0:00:30]} gxf6 {[%emt 0:02:30]} 14. Qf3 {[%emt 0:00:30]} Qe6 {[%emt 0:01:30]} 15. Kh2 {[%emt 0:00:30]} Kh7 {[%emt 0:01:30]} 16. Rg1 {[%emt 0:03:30]} Rg8 {[%emt 0:02:30]} 17. Ne2 {[%emt 0:07:30]} Rg6 {[%emt 0:04:30]} 18. Ng3 {[%emt 0:01:30]} Rag8 {[%emt 0:01:30]} 19. Nf5 {[%emt 0:00:30]} Bd8 {[%emt 0:01:30]} 20. Qe3 {[%emt 0:00:30]} Qe8 {[%emt 0:02:30]} 21. Qxa7 {[%emt 0:04:30]} Rg5 {[%emt 0:01:30]} 22. Rxg5 {[%emt 0:04:30]} Rxg5 {[%emt 0:00:30]} 23. Nf3 {[%emt 0:00:30]} Rg4 {[%emt 0:00:30]} 24. Qe3 {[%emt 0:01:30]} Rg6 {[%emt 0:01:30]} 25. N3h4 {[%emt 0:00:00]} Rg5 {[%emt 0:00:00]} 26. a4 {[%emt 0:01:00]} 1-0

[Event "29th CRO-chT Junior 2020"]
[Site "Cakovec"]
[Date "2020.07.17"]
[Round "7.20"]
[White "Kresic, Vid"]
[Black "Kristofic, Dino"]
[Result "1-0"]
[ECO "D02"]
[WhiteElo "1216"]
[BlackElo "1290"]
[Annotator "NA RC"]
[PlyCount "43"]
[EventDate "2020.07.14"]
[EventType "team-tourn"]
[EventCountry "CRO"]
[SourceTitle "playchess.com"]
[Source "ChessBase"]
[SourceQuality "1"]
[TimeControl "5400+30"]

1. d4 {[%emt 0:00:30]} d5 {[%emt 0:00:30]} 2. Nf3 {[%emt 0:00:30]} Nf6 {[%emt 0:01:30]} 3. Bf4 {[%emt 0:01:30]} Bf5 {[%emt 0:01:30]} 4. e3 {[%emt 0:00:30]} Nbd7 {[%emt 0:01:30]} 5. Nbd2 {[%emt 0:01:30]} e6 {[%emt 0:00:30]} 6. Be2 {[%emt 0:00:30]} Rc8 {[%emt 0:01:30]} 7. c4 {[%emt 0:01:30]} c6 {[%emt 0:01:30]} 8. Qb3 {[%emt 0:01:30]} b6 {[%emt 0:01:30]} 9. O-O {[%emt 0:00:30]} c5 {[%emt 0:02:30]} 10. cxd5 {[%emt 0:00:30]} exd5 {[%emt 0:01:30]} 11. Ba6 {[%emt 0:01:30]} Rc6 {[%emt 0:07:30]} 12. Bb7 {[%emt 0:00:30]} Re6 {[%emt 0:07:30]} 13. Bxd5 {[%emt 0:01:30]} Nxd5 {[%emt 0:00:30]} 14. Qxd5 {[%emt 0:00:30]} Bg6 {[%emt 0:03:30]} 15. Ng5 {[%emt 0:01:30]} Rf6 {[%emt 0:03:30]} 16. Nde4 {[%emt 0:02:30]} Bxe4 {[%emt 0:02:30]} 17. Nxe4 {[%emt 0:01:30]} Rg6 {[%emt 0:02:30]} 18. Rfd1 {[%emt 0:05:30]} Be7 {[%emt 0:06:30]} 19. dxc5 {[%emt 0:01:30]} bxc5 {[%emt 0:03:30]} 20. Nd6+ {[%emt 0:00:30]} Bxd6 {[%emt 0:03:30]} 21. Bxd6 {[%emt 0:00:30]} Rg5 {[%emt 0:02:30]} 22. Qe4+ {[%emt 0:00:30]} 1-0

[Event "29th CRO-chT Junior 2020"]
[Site "Cakovec"]
[Date "2020.07.17"]
[Round "8.3"]
[White "Borzan, Andrej"]
[Black "Vuk, Sebastijan"]
[Result "1-0"]
[ECO "E91"]
[WhiteElo "1983"]
[BlackElo "1382"]
[Annotator "NA"]
[PlyCount "71"]
[EventDate "2020.07.14"]
[EventType "team-tourn"]
[EventCountry "CRO"]
[SourceTitle "playchess.com"]
[Source "ChessBase"]
[SourceQuality "1"]
[TimeControl "5400+30"]

1. d4 {[%emt 0:07:30]} Nf6 {[%emt 0:00:30]} 2. Nf3 {[%emt 0:00:30]} g6 {[%emt 0:00:00]} 3. c4 {[%emt 0:00:00]} d6 {[%emt 0:00:00]} 4. Nc3 {[%emt 0:00:00]} Bg7 {[%emt 0:00:30]} 5. e4 {[%emt 0:00:30]} O-O {[%emt 0:01:30]} 6. Be3 {[%emt 0:01:30]} Bg4 {[%emt 0:00:30]} 7. Be2 {[%emt 0:00:30]} Nc6 {[%emt 0:00:30]} 8. h3 {[%emt 0:01:30] E91: King's Indian: Classical: 6 Be2, unusual replies including 6...c5 and 6...Bg4.} Bxf3 $1 {[%emt 0:03:30]} 9. Bxf3 {[%emt 0:00:30]} Nd7 {[%emt 0:03:30]} 10. h4 {[%emt 0:04:30] [#]} f5 $146 {[%emt 0:08:30]} ({Predecessor:} 10... e5 11. d5 Nd4 12. h5 c5 13. g4 Bf6 14. Bg2 Bg5 15. Qd2 Bf4 16. Bxf4 exf4 17. Qxf4 {0-1 (35) Andrejic,V (2268)-Stojanovic,D (2499) Kragujevac 2015}) 11. exf5 {[%emt 0:05:30]} Rxf5 $2 {[%emt 0:02:30]} ({Better is} 11... gxf5 $14 12. h5 Kh8) 12. Be4 {[%emt 0:00:30]} Rf8 {[%emt 0:04:30]} 13. h5 {[%emt 0:02:30]} g5 {[%emt 0:24:30]} 14. h6 {[%emt 0:03:30]} Bf6 {[%emt 0:03:30]} 15. Qd3 {[%emt 0:00:30]} Nb4 {[%emt 0:06:30]} 16. Bxh7+ {[%emt 0:02:30]} Kh8 {[%emt 0:00:30]} 17. Qg6 {[%emt 0:01:30]} Rg8 {[%emt 0:00:30]} 18. Bxg8 {[%emt 0:00:30]} Qxg8 {[%emt 0:00:30]} 19. Qxg8+ {[%emt 0:00:00]} Rxg8 {[%emt 0:00:30]} 20. O-O-O {[%emt 0:00:00]} a6 {[%emt 0:02:30]} 21. a3 {[%emt 0:00:30]} Nc6 {[%emt 0:00:30]} 22. Nd5 {[%emt 0:03:30]} Na5 {[%emt 0:00:30]} 23. Nxf6 {[%emt 0:00:00]} Nxf6 $18 {[%emt 0:01:30]} 24. c5 {[%emt 0:00:00]} Nd5 {[%emt 0:00:30]} 25. Rh3 {[%emt 0:03:30]} Nc4 {[%emt 0:03:30]} 26. Rf3 {[%emt 0:04:30]} Nf6 {[%emt 0:01:30]} 27. Bd2 {[%emt 0:01:30]} Nxd2 {[%emt 0:06:30]} 28. Rxd2 {[%emt 0:00:30]} Re8 {[%emt 0:00:30]} 29. Re2 {[%emt 0:00:30]} Nd5 {[%emt 0:01:30]} 30. Rf7 {[%emt 0:00:30]} Rg8 {[%emt 0:00:30]} 31. Re6 {[%emt 0:01:30]} g4 {[%emt 0:02:30]} 32. Kd2 {[%emt 0:00:30]} b6 {[%emt 0:00:30]} 33. cxb6 {[%emt 0:01:30]} cxb6 {[%emt 0:00:30]} 34. Kd3 {[%emt 0:00:30]} b5 {[%emt 0:00:30]} 35. Rf5 {[%emt 0:01:30]} g3 {[%emt 0:01:30]} 36. f3 {[%emt 0:00:30]} 1-0

[Event "29th CRO-chT Junior 2020"]
[Site "Cakovec"]
[Date "2020.07.17"]
[Round "8.4"]
[White "Kristofic, Dino"]
[Black "Poljan, Max"]
[Result "0-1"]
[ECO "B40"]
[WhiteElo "1290"]
[BlackElo "1618"]
[Annotator "NA RC"]
[PlyCount "74"]
[EventDate "2020.07.14"]
[EventType "team-tourn"]
[EventCountry "CRO"]
[SourceTitle "playchess.com"]
[Source "ChessBase"]
[SourceQuality "1"]
[TimeControl "5400+30"]

1. e4 {[%emt 0:00:30]} c5 {[%emt 0:00:30]} 2. Nf3 {[%emt 0:00:30]} e6 {[%emt 0:00:30]} 3. d4 {[%emt 0:00:30]} cxd4 {[%emt 0:01:30]} 4. Nxd4 {[%emt 0:02:30]} a6 {[%emt 0:00:00]} 5. Be3 {[%emt 0:02:30]} Nf6 {[%emt 0:01:00]} 6. Nc3 {[%emt 0:00:30]} b5 {[%emt 0:01:30]} 7. Bd3 {[%emt 0:02:30]} Bb7 {[%emt 0:00:30]} 8. Bg5 {[%emt 0:05:30]} Be7 {[%emt 0:02:30]} 9. Bxf6 {[%emt 0:04:30]} Bxf6 {[%emt 0:00:30]} 10. Nf3 {[%emt 0:01:30]} Qc7 {[%emt 0:02:30]} 11. Qd2 {[%emt 0:05:30]} O-O {[%emt 0:05:30]} 12. O-O {[%emt 0:00:30]} Bxc3 {[%emt 0:02:30]} 13. bxc3 {[%emt 0:02:30]} Rc8 {[%emt 0:00:00]} 14. a4 {[%emt 0:11:30]} Qxc3 {[%emt 0:08:00]} 15. axb5 {[%emt 0:06:30]} axb5 {[%emt 0:09:30]} 16. Rxa8 {[%emt 0:11:30]} Bxa8 {[%emt 0:00:30]} 17. Rb1 {[%emt 0:02:30]} Qxd2 {[%emt 0:17:30]} 18. Nxd2 {[%emt 0:00:30]} b4 {[%emt 0:04:30]} 19. Rxb4 {[%emt 0:02:30]} Nc6 {[%emt 0:00:30]} 20. Ra4 {[%emt 0:07:30]} Ne5 {[%emt 0:00:30]} 21. Be2 {[%emt 0:02:30]} g5 {[%emt 0:02:30]} 22. g3 {[%emt 0:01:30]} Ng6 {[%emt 0:05:30]} 23. f3 {[%emt 0:05:30]} Kg7 {[%emt 0:01:30]} 24. c4 {[%emt 0:00:30]} Rb8 {[%emt 0:01:30]} 25. Kf2 {[%emt 0:01:19]} Bc6 {[%emt 0:01:30]} 26. Ra5 {[%emt 0:00:53]} h6 {[%emt 0:00:30]} 27. Ke3 {[%emt 0:01:47]} Ne7 {[%emt 0:03:30]} 28. Bd1 {[%emt 0:03:09]} Rb4 {[%emt 0:01:30]} 29. Be2 {[%emt 0:03:46]} f5 {[%emt 0:00:30]} 30. Bd3 {[%emt 0:00:48]} Kf6 {[%emt 0:02:30]} 31. h3 {[%emt 0:01:38]} Rb2 {[%emt 0:01:30]} 32. h4 {[%emt 0:06:10]} f4+ {[%emt 0:00:30]} 33. gxf4 {[%emt 0:01:05]} gxf4+ {[%emt 0:00:30]} 34. Ke2 {[%emt 0:00:33]} Ng6 {[%emt 0:00:00]} 35. Rh5 {[%emt 0:01:26]} Kg7 {[%emt 0:00:00]} 36. Ke1 {[%emt 0:01:51]} e5 {[%emt 0:01:30]} 37. c5 {[%emt 0:01:09]} Ra2 {[%emt 0:01:30]} 0-1

[Event "29th CRO-chT Junior 2020"]
[Site "Cakovec"]
[Date "2020.07.17"]
[Round "8.6"]
[White "Radenic, Filip"]
[Black "Dumancic, Simun"]
[Result "1-0"]
[ECO "A16"]
[WhiteElo "2134"]
[BlackElo "1896"]
[Annotator "ChessBase"]
[PlyCount "63"]
[EventDate "2020.07.14"]
[EventType "team-tourn"]
[EventCountry "CRO"]
[SourceTitle "playchess.com"]
[Source "ChessBase"]
[SourceQuality "1"]
[TimeControl "5400+30"]

1. c4 {[%emt 0:01:30]} Nf6 {[%emt 0:00:30]} 2. Nf3 {[%emt 0:00:00]} g6 {[%emt 0:00:30]} 3. Nc3 {[%emt 0:00:00]} d5 {[%emt 0:02:30]} 4. cxd5 {[%emt 0:01:30]} Nxd5 {[%emt 0:00:30]} 5. Qa4+ {[%emt 0:00:00]} Nc6 {[%emt 0:06:30]} 6. Ne5 {[%emt 0:01:00]} Nxc3 {[%emt 0:03:30]} 7. dxc3 {[%emt 0:03:30]} Bd7 {[%emt 0:00:30]} 8. Nxd7 {[%emt 0:01:30]} Qxd7 {[%emt 0:00:30]} 9. e4 {[%emt 0:00:30]} Ne5 {[%emt 0:04:30]} 10. Qxd7+ {[%emt 0:02:30]} Nxd7 {[%emt 0:00:30]} 11. Bf4 {[%emt 0:02:30]} e5 {[%emt 0:05:30]} 12. Be3 {[%emt 0:01:30]} Bc5 {[%emt 0:00:30]} 13. Bh6 {[%emt 0:00:30]} Bf8 {[%emt 0:01:30]} 14. Bd2 {[%emt 0:01:30]} Nc5 {[%emt 0:01:30]} 15. f3 {[%emt 0:01:30]} O-O-O {[%emt 0:01:30]} 16. Bg5 {[%emt 0:02:30]} Rd6 {[%emt 0:03:30]} 17. Rd1 {[%emt 0:02:30]} Rxd1+ {[%emt 0:00:30]} 18. Kxd1 {[%emt 0:00:30]} Bg7 {[%emt 0:00:30]} 19. Bc4 {[%emt 0:00:30]} f6 {[%emt 0:02:30]} 20. Be3 {[%emt 0:00:30]} Na4 {[%emt 0:00:30]} 21. Kc2 {[%emt 0:00:30]} Nb6 {[%emt 0:01:30]} 22. Be6+ {[%emt 0:03:30]} Kb8 {[%emt 0:02:30]} 23. Rd1 {[%emt 0:00:30]} Re8 {[%emt 0:01:30]} 24. Bxb6 {[%emt 0:08:30]} cxb6 {[%emt 0:08:30]} 25. Rd7 {[%emt 0:00:30]} Bf8 {[%emt 0:03:30]} 26. Bd5 {[%emt 0:00:30]} Kc8 {[%emt 0:00:30]} 27. Rxh7 {[%emt 0:00:30]} g5 {[%emt 0:04:30]} 28. Bxb7+ {[%emt 0:00:30]} Kb8 {[%emt 0:01:30]} 29. Bd5 {[%emt 0:00:30]} Re7 {[%emt 0:00:30]} 30. Rh8 {[%emt 0:00:30]} Re8 {[%emt 0:00:30]} 31. g3 {[%emt 0:02:30]} a5 {[%emt 0:00:30]} 32. h4 {[%emt 0:00:30]} 1-0

[Event "29th CRO-chT Junior 2020"]
[Site "Cakovec"]
[Date "2020.07.17"]
[Round "8.7"]
[White "Sagovac, Kristijan"]
[Black "Troselj, Ivan"]
[Result "0-1"]
[ECO "C59"]
[WhiteElo "1839"]
[BlackElo "1857"]
[Annotator "NA RC"]
[PlyCount "42"]
[EventDate "2020.07.14"]
[EventType "team-tourn"]
[EventCountry "CRO"]
[SourceTitle "playchess.com"]
[Source "ChessBase"]
[SourceQuality "1"]
[TimeControl "5400+30"]

{[%evp 24,38,0,0,-12,9,4,-138,-109,-191,-77,-85,-66,-29990,-108,-29991,-29992]} 1. e4 {[%emt 0:00:30]} e5 {[%emt 0:00:30]} 2. Nf3 {[%emt 0:00:00]} Nc6 {[%emt 0:00:00]} 3. Bc4 {[%emt 0:00:00]} Nf6 {[%emt 0:00:00]} 4. Ng5 {[%emt 0:00:00]} d5 {[%emt 0:00:30]} 5. exd5 {[%emt 0:00:00]} Na5 {[%emt 0:00:00]} 6. Bb5+ {[%emt 0:00:00]} c6 {[%emt 0:00:00]} 7. dxc6 {[%emt 0:00:00]} bxc6 {[%emt 0:00:00]} 8. Be2 {[%emt 0:00:30]} h6 {[%emt 0:00:00]} 9. Nf3 {[%emt 0:05:30]} e4 {[%emt 0:00:30]} 10. Ne5 {[%emt 0:00:30]} Bc5 {[%emt 0:00:00]} 11. O-O {[%emt 0:01:30]} Qd6 {[%emt 0:00:00]} 12. Ng4 {[%emt 0:03:30]} Bxg4 {[%emt 0:08:30]} 13. Bxg4 {[%emt 0:00:00]} h5 {[%emt 0:00:30]} 14. Be2 {[%emt 0:01:00]} Ng4 $1 {[%emt 0:00:30]} 15. g3 {[%emt 0:00:30] [#]} (15. Bxg4 $11 hxg4 16. g3) 15... Nxh2 $1 {[%emt 0:00:00]} 16. Kxh2 {[%emt 0:07:30] [#]} ({White should try} 16. d4 $1 $15 exd3 17. Bf4) 16... h4 {[%emt 0:00:00]} (16... Bxf2 $1 $19 {and Black stays clearly on top.} 17. Rxf2 h4) 17. Kg2 {[%emt 0:01:30]} Bxf2 $15 {[%emt 0:00:30]} ({Don't blunder} 17... hxg3 $2 18. fxg3 g6 {[#]} 19. d4 $1 $18 {[%mdl 512]}) 18. Rh1 $2 {[%emt 0:02:30]} ({Wrong is} 18. Rxf2 $2 hxg3 19. Qg1 gxf2 $19) (18. Bg4 $17) 18... Qxg3+ {[%emt 0:01:30]} 19. Kf1 {[%emt 0:00:00]} h3 {[%emt 0:00:00]} 20. Bg4 {[%emt 0:01:00]} Qg2+ {[%emt 0:00:00]} 21. Ke2 {[%emt 0:00:00]} Bd4+ {[%emt 0:00:00]} 0-1

[Event "29th CRO-chT Junior 2020"]
[Site "Cakovec"]
[Date "2020.07.17"]
[Round "8.8"]
[White "Zekic, Patrik"]
[Black "Martic, Filip"]
[Result "1-0"]
[ECO "A57"]
[WhiteElo "1699"]
[BlackElo "1656"]
[Annotator "NA RC"]
[PlyCount "149"]
[EventDate "2020.07.14"]
[EventType "team-tourn"]
[EventCountry "CRO"]
[SourceTitle "playchess.com"]
[Source "ChessBase"]
[SourceQuality "1"]
[TimeControl "5400+30"]

1. d4 {[%emt 0:00:30]} Nf6 {[%emt 0:00:30]} 2. c4 {[%emt 0:00:30]} c5 {[%emt 0:00:30]} 3. d5 {[%emt 0:00:00]} b5 {[%emt 0:00:00]} 4. cxb5 {[%emt 0:00:00]} a6 {[%emt 0:00:00]} 5. b6 {[%emt 0:00:30]} g6 {[%emt 0:00:30]} 6. Nc3 {[%emt 0:00:30]} d6 {[%emt 0:00:30]} 7. e4 {[%emt 0:00:00]} Nbd7 {[%emt 0:00:00]} 8. Nf3 {[%emt 0:01:00]} Bg7 {[%emt 0:01:00]} 9. a4 {[%emt 0:03:30]} a5 {[%emt 0:00:30]} 10. Bb5 {[%emt 0:03:30]} O-O {[%emt 0:00:30]} 11. Qe2 {[%emt 0:03:30]} Nxb6 {[%emt 0:00:30]} 12. h3 {[%emt 0:01:30]} e6 {[%emt 0:07:30]} 13. dxe6 {[%emt 0:16:30]} Bxe6 {[%emt 0:02:30]} 14. O-O {[%emt 0:02:30]} Qc7 {[%emt 0:08:30]} 15. Bf4 {[%emt 0:01:30]} Rfd8 {[%emt 0:03:30]} 16. Rac1 {[%emt 0:15:30]} Nh5 {[%emt 0:15:30]} 17. Bg5 {[%emt 0:10:30]} Bf6 {[%emt 0:01:30]} 18. Be3 {[%emt 0:10:30]} Be7 {[%emt 0:05:30]} 19. Qc2 {[%emt 0:04:30]} Qb7 {[%emt 0:03:30]} 20. Rfd1 {[%emt 0:04:59]} Rac8 {[%emt 0:01:30]} 21. Ng5 {[%emt 0:02:48]} Ng7 {[%emt 0:03:30]} 22. Qe2 {[%emt 0:04:34]} Bb3 {[%emt 0:03:30]} 23. Ba6 {[%emt 0:02:18]} Bxd1 {[%emt 0:00:00]} 24. Rxd1 {[%emt 0:00:14]} Qc6 {[%emt 0:01:00]} 25. Bxc8 {[%emt 0:00:12]} Rxc8 {[%emt 0:00:00]} 26. Qc2 {[%emt 0:02:27]} Bxg5 {[%emt 0:11:00]} 27. Bxg5 {[%emt 0:00:03]} Re8 {[%emt 0:00:30]} 28. Bf4 {[%emt 0:02:12]} Rd8 {[%emt 0:01:30]} 29. Qb3 {[%emt 0:02:03]} c4 {[%emt 0:01:30]} 30. Qb5 {[%emt 0:00:22]} Qxb5 {[%emt 0:00:30]} 31. axb5 {[%emt 0:00:04]} Ne8 {[%emt 0:00:30]} 32. Be3 {[%emt 0:00:45]} Nd7 {[%emt 0:01:30]} 33. Ra1 {[%emt 0:00:43]} Ra8 {[%emt 0:00:30]} 34. f4 {[%emt 0:02:36]} Kf8 {[%emt 0:01:30]} 35. Ra4 {[%emt 0:00:08]} Ke7 {[%emt 0:03:30]} 36. Rxc4 {[%emt 0:00:25]} Kd8 {[%emt 0:00:30]} 37. Ra4 {[%emt 0:00:58]} Nc7 {[%emt 0:01:30]} 38. b6 {[%emt 0:00:50]} Ne6 {[%emt 0:00:00]} 39. b4 {[%emt 0:00:52]} Rc8 {[%emt 0:00:00]} 40. Nd5 {[%emt 0:01:14]} axb4 {[%emt 0:00:30]} 41. Rxb4 {[%emt 0:00:46]} Nec5 {[%emt 0:00:30]} 42. Kh2 {[%emt 0:01:34]} Rb8 {[%emt 0:02:30]} 43. g4 {[%emt 0:00:27]} Rb7 {[%emt 0:01:30]} 44. Kg3 {[%emt 0:00:33]} f6 {[%emt 0:00:30]} 45. Kf3 {[%emt 0:00:16]} Ke8 {[%emt 0:00:30]} 46. Bd4 {[%emt 0:00:55]} Kf7 {[%emt 0:00:30]} 47. h4 {[%emt 0:00:38]} h6 {[%emt 0:01:36]} 48. g5 {[%emt 0:00:29]} fxg5 {[%emt 0:00:59]} 49. fxg5 {[%emt 0:00:14]} h5 {[%emt 0:00:06]} 50. Rb5 {[%emt 0:01:18]} Rb8 {[%emt 0:00:59]} 51. Bxc5 {[%emt 0:00:32]} dxc5 {[%emt 0:01:01]} 52. Ke3 {[%emt 0:00:17]} Ke6 {[%emt 0:00:27]} 53. Rb1 {[%emt 0:00:15]} Ne5 {[%emt 0:01:50]} 54. Nf4+ {[%emt 0:00:44]} Kf7 {[%emt 0:00:10]} 55. Nd3 {[%emt 0:00:30]} Nc4+ {[%emt 0:00:31]} 56. Kf4 {[%emt 0:00:21]} Rxb6 {[%emt 0:00:27]} 57. Rxb6 {[%emt 0:00:27]} Nxb6 {[%emt 0:00:01]} 58. Nxc5 {[%emt 0:00:02]} Nc8 {[%emt 0:02:04]} 59. Ke5 {[%emt 0:00:14]} Ke7 {[%emt 0:00:15]} 60. Ne6 {[%emt 0:00:26]} Nb6 {[%emt 0:00:44]} 61. Nf4 {[%emt 0:00:09]} Nd7+ {[%emt 0:00:09]} 62. Kd4 {[%emt 0:00:24]} Kf7 {[%emt 0:00:50]} 63. Kd5 {[%emt 0:00:11]} Nb6+ {[%emt 0:00:13]} 64. Kc5 {[%emt 0:00:20]} Nd7+ {[%emt 0:00:32]} 65. Kd6 {[%emt 0:00:14]} Nb6 {[%emt 0:00:30]} 66. e5 {[%emt 0:00:22]} Nc4+ {[%emt 0:00:00]} 67. Kd5 {[%emt 0:00:20]} Ne3+ {[%emt 0:00:00]} 68. Ke4 {[%emt 0:00:43]} Nf5 {[%emt 0:00:00]} 69. e6+ {[%emt 0:00:26]} Kg7 {[%emt 0:00:03]} 70. Ng2 {[%emt 0:01:14]} Kf8 {[%emt 0:02:19]} 71. Kd5 {[%emt 0:00:05]} Ke7 {[%emt 0:00:10]} 72. Ke5 {[%emt 0:00:10]} Nd6 {[%emt 0:00:40]} 73. Nf4 {[%emt 0:00:27]} Nc4+ {[%emt 0:00:04]} 74. Kd4 {[%emt 0:00:24]} Nb6 {[%emt 0:00:59]} 75. Nd5+ {[%emt 0:00:00]} 1-0